[Event "*** SCC Grand Prix: Titled Tuesday Blitz"]
[Site "Chess.com"]
[Date "2020.06.23"]
[Round "8"]
[White "Shield12"]
[Black "attack2mateU"]
[Result "1-0"]
[WhiteElo "2843"]
[BlackElo "2674"]
[TimeControl "180+1"]
[EndTime "11:35:30 PDT"]
[Termination "Shield12 won by resignation"]

1. e4 {[%clk 0:03:00.9]} 1... c5 {[%clk 0:02:59.3]} 2. Nf3 {[%clk 0:03:00.9]}
2... d6 {[%clk 0:02:59.5]} 3. d4 {[%clk 0:03:00.6]} 3... cxd4 {[%clk 0:03:00.4]}
4. Qxd4 {[%clk 0:03:01.4]} 4... Nc6 {[%clk 0:02:59.4]} 5. Qe3 {[%clk 0:03:01.4]}
5... Nf6 {[%clk 0:02:57.8]} 6. h3 {[%clk 0:03:01.5]} 6... e6 {[%clk 0:02:39.8]}
7. Be2 {[%clk 0:03:00]} 7... Be7 {[%clk 0:02:38.1]} 8. O-O {[%clk 0:02:59.9]}
8... O-O {[%clk 0:02:38.7]} 9. c4 {[%clk 0:02:59.9]} 9... Qc7 {[%clk 0:02:11.1]}
10. Nc3 {[%clk 0:02:58.2]} 10... Qb8 {[%clk 0:02:04.7]} 11. b3 {[%clk
0:02:57.1]} 11... Bd8 {[%clk 0:02:04.6]} 12. Bb2 {[%clk 0:02:55.7]} 12... Bb6
{[%clk 0:02:04.7]} 13. Qd2 {[%clk 0:02:55.9]} 13... Rd8 {[%clk 0:02:03.6]} 14.
Rfd1 {[%clk 0:02:41.3]} 14... h6 {[%clk 0:01:55.4]} 15. Bd3 {[%clk 0:02:36.5]}
15... e5 {[%clk 0:01:55]} 16. Rac1 {[%clk 0:02:31.6]} 16... Bd7 {[%clk
0:01:45.6]} 17. Ne2 {[%clk 0:02:15.6]} 17... a5 {[%clk 0:01:37.9]} 18. Bc3
{[%clk 0:02:12.4]} 18... Bc5 {[%clk 0:01:37.7]} 19. Ng3 {[%clk 0:02:10.2]} 19...
Qa7 {[%clk 0:01:24.6]} 20. Nh4 {[%clk 0:01:54.2]} 20... Ne7 {[%clk 0:01:06.1]}
21. Qe2 {[%clk 0:01:51.8]} 21... Ng6 {[%clk 0:00:55]} 22. Nhf5 {[%clk
0:01:39.4]} 22... Nf4 {[%clk 0:00:53.5]} 23. Qf3 {[%clk 0:01:39.8]} 23... Kh7
{[%clk 0:00:31.1]} 24. Bc2 {[%clk 0:01:33.4]} 24... g6 {[%clk 0:00:31]} 25. Ne3
{[%clk 0:01:29.7]} 25... Be6 {[%clk 0:00:30]} 26. Ne2 {[%clk 0:01:22]} 26...
N6h5 {[%clk 0:00:26.1]} 27. Nxf4 {[%clk 0:01:15.6]} 27... Nxf4 {[%clk 0:00:27]}
28. Ng4 {[%clk 0:01:15.4]} 28... Bxg4 {[%clk 0:00:24.1]} 29. hxg4 {[%clk
0:01:14.9]} 29... Bxf2+ {[%clk 0:00:23.1]} 30. Kf1 {[%clk 0:00:50.1]} 30... Be3
{[%clk 0:00:20.4]} 31. Rb1 {[%clk 0:00:37.2]} 31... Ne6 {[%clk 0:00:18.9]} 32.
g3 {[%clk 0:00:19.3]} 32... Kg7 {[%clk 0:00:16]} 33. Kg2 {[%clk 0:00:18.4]}
33... Bd4 {[%clk 0:00:15.6]} 34. Bd2 {[%clk 0:00:17.9]} 34... f6 {[%clk
0:00:12.8]} 35. Bxh6+ {[%clk 0:00:15.6]} 35... Kf7 {[%clk 0:00:06.7]} 36. Rf1
{[%clk 0:00:15.4]} 36... Ke7 {[%clk 0:00:01.8]} 37. Qxf6+ {[%clk 0:00:15.9]}
37... Kd7 {[%clk 0:00:02.3]} 38. Qf7+ {[%clk 0:00:16.3]} 38... Kc6 {[%clk
0:00:02.9]} 39. Qxe6 {[%clk 0:00:16.9]} 39... Rh8 {[%clk 0:00:02.9]} 40. Qd5+
{[%clk 0:00:15.2]} 40... Kc7 {[%clk 0:00:02.7]} 1-0

[Event "*** SCC Grand Prix: Titled Tuesday Blitz"]
[Site "Chess.com"]
[Date "2020.06.23"]
[Round "8"]
[White "Gurvich_Vitaly"]
[Black "124chess"]
[Result "1/2-1/2"]
[WhiteElo "2562"]
[BlackElo "2717"]
[TimeControl "180+1"]
[EndTime "11:35:30 PDT"]
[Termination "Game drawn by repetition"]

1. c4 {[%clk 0:03:00.4]} 1... e6 {[%clk 0:03:00.9]} 2. d3 {[%clk 0:02:59.8]}
2... d5 {[%clk 0:03:01.6]} 3. Nd2 {[%clk 0:02:58.6]} 3... c5 {[%clk 0:03:01.4]}
4. g3 {[%clk 0:02:58.4]} 4... Nc6 {[%clk 0:03:01.5]} 5. Bg2 {[%clk 0:02:58.8]}
5... Nf6 {[%clk 0:03:02.2]} 6. Ngf3 {[%clk 0:02:58.9]} 6... Be7 {[%clk
0:03:02.2]} 7. O-O {[%clk 0:02:59.4]} 7... O-O {[%clk 0:03:02.8]} 8. a3 {[%clk
0:02:59.8]} 8... b6 {[%clk 0:03:02.9]} 9. b3 {[%clk 0:02:57.8]} 9... Bb7 {[%clk
0:03:03]} 10. Bb2 {[%clk 0:02:57.9]} 10... d4 {[%clk 0:03:03.1]} 11. Qc2 {[%clk
0:02:56.4]} 11... a5 {[%clk 0:03:00]} 12. e4 {[%clk 0:02:53.2]} 12... a4 {[%clk
0:02:56]} 13. bxa4 {[%clk 0:02:48.7]} 13... Nd7 {[%clk 0:02:53.7]} 14. Rae1
{[%clk 0:02:38.8]} 14... Qb8 {[%clk 0:02:53.3]} 15. h4 {[%clk 0:02:33.6]} 15...
Qa7 {[%clk 0:02:53.3]} 16. Ng5 {[%clk 0:02:33.5]} 16... h6 {[%clk 0:02:48.4]}
17. Nh3 {[%clk 0:02:32.8]} 17... Qxa4 {[%clk 0:02:47.1]} 18. Qb1 {[%clk
0:02:33]} 18... Na5 {[%clk 0:02:25.6]} 19. f4 {[%clk 0:02:32.2]} 19... Nb3
{[%clk 0:02:24.9]} 20. Nf3 {[%clk 0:02:30.8]} 20... Nf6 {[%clk 0:02:25]} 21. Nf2
{[%clk 0:02:25.2]} 21... h5 {[%clk 0:02:19.8]} 22. Qd1 {[%clk 0:02:09.9]} 22...
Bc6 {[%clk 0:02:15]} 23. Ne5 {[%clk 0:02:02.3]} 23... Be8 {[%clk 0:02:14.7]} 24.
g4 {[%clk 0:01:58.7]} 24... Na5 {[%clk 0:02:13]} 25. Qf3 {[%clk 0:01:58.1]}
25... hxg4 {[%clk 0:02:11.7]} 26. Nfxg4 {[%clk 0:01:57.6]} 26... Nxg4 {[%clk
0:02:11.3]} 27. Qxg4 {[%clk 0:01:58.5]} 27... Nc6 {[%clk 0:02:10.1]} 28. Nxc6
{[%clk 0:01:50.5]} 28... Bxc6 {[%clk 0:02:06.1]} 29. h5 {[%clk 0:01:41.6]} 29...
Qc2 {[%clk 0:01:45.8]} 30. h6 {[%clk 0:01:20.4]} 30... g6 {[%clk 0:01:45.9]} 31.
Rf2 {[%clk 0:00:55.8]} 31... Qxd3 {[%clk 0:01:45.3]} 32. f5 {[%clk 0:00:50.7]}
32... Kh7 {[%clk 0:01:24.5]} 33. fxg6+ {[%clk 0:00:46.7]} 33... fxg6 {[%clk
0:01:24.5]} 34. Qxe6 {[%clk 0:00:46.9]} 34... Bh4 {[%clk 0:01:15.9]} 35. Rf7+
{[%clk 0:00:33.1]} 35... Rxf7 {[%clk 0:00:37.4]} 36. Qxf7+ {[%clk 0:00:34]}
36... Kxh6 {[%clk 0:00:38.1]} 37. Bc1+ {[%clk 0:00:30.6]} 37... Bg5 {[%clk
0:00:38.3]} 38. Bxg5+ {[%clk 0:00:18.7]} 38... Kxg5 {[%clk 0:00:39.2]} 39. Qe7+
{[%clk 0:00:18.3]} 39... Kh6 {[%clk 0:00:26.6]} 40. Qh4+ {[%clk 0:00:16.6]}
40... Kg7 {[%clk 0:00:26.8]} 41. Qe7+ {[%clk 0:00:16.4]} 41... Kh6 {[%clk
0:00:17.1]} 42. Qh4+ {[%clk 0:00:08.8]} 42... Kg7 {[%clk 0:00:17.1]} 43. Qe7+
{[%clk 0:00:08.7]} 43... Kh6 {[%clk 0:00:17.5]} 1/2-1/2

[Event "*** SCC Grand Prix: Titled Tuesday Blitz"]
[Site "Chess.com"]
[Date "2020.06.23"]
[Round "8"]
[White "Konavets"]
[Black "Volodar_Murzin"]
[Result "1-0"]
[WhiteElo "2997"]
[BlackElo "2712"]
[TimeControl "180+1"]
[EndTime "11:35:31 PDT"]
[Termination "Konavets won by resignation"]

1. d4 {[%clk 0:02:56.6]} 1... Nf6 {[%clk 0:02:59.4]} 2. c4 {[%clk 0:02:56.4]}
2... g6 {[%clk 0:02:58.3]} 3. Nf3 {[%clk 0:02:56.3]} 3... Bg7 {[%clk 0:02:58.3]}
4. g3 {[%clk 0:02:56.8]} 4... O-O {[%clk 0:02:58.5]} 5. Bg2 {[%clk 0:02:57.7]}
5... d6 {[%clk 0:02:58.9]} 6. O-O {[%clk 0:02:58.5]} 6... Nc6 {[%clk 0:02:58.5]}
7. Nc3 {[%clk 0:02:58]} 7... e5 {[%clk 0:02:58.2]} 8. dxe5 {[%clk 0:02:58.5]}
8... Nxe5 {[%clk 0:02:58.5]} 9. Nd2 {[%clk 0:02:48.3]} 9... Re8 {[%clk
0:02:54.5]} 10. b3 {[%clk 0:02:47.2]} 10... h5 {[%clk 0:02:45.4]} 11. h3 {[%clk
0:02:43.2]} 11... Bf5 {[%clk 0:02:32.4]} 12. Bb2 {[%clk 0:02:41.9]} 12... Qc8
{[%clk 0:02:30]} 13. Kh2 {[%clk 0:02:42.1]} 13... Nh7 {[%clk 0:02:09.2]} 14. e4
{[%clk 0:02:37.7]} 14... Bd7 {[%clk 0:02:07.7]} 15. Qc2 {[%clk 0:02:35.5]} 15...
Nf8 {[%clk 0:01:56.9]} 16. f4 {[%clk 0:02:30.1]} 16... Nc6 {[%clk 0:01:51.5]}
17. Nd5 {[%clk 0:02:30.5]} 17... Nd4 {[%clk 0:01:51.3]} 18. Qd3 {[%clk 0:02:24]}
18... Nfe6 {[%clk 0:01:39.5]} 19. Rae1 {[%clk 0:02:20.8]} 19... c6 {[%clk
0:01:30.3]} 20. Nc3 {[%clk 0:02:19.8]} 20... a5 {[%clk 0:01:27]} 21. Na4 {[%clk
0:02:14.4]} 21... Qc7 {[%clk 0:01:15.8]} 22. f5 {[%clk 0:02:14.4]} 22... Nc5
{[%clk 0:01:10.2]} 23. Nxc5 {[%clk 0:01:55.2]} 23... dxc5 {[%clk 0:01:11.1]} 24.
f6 {[%clk 0:01:55.5]} 24... Bh6 {[%clk 0:01:08.4]} 25. Nf3 {[%clk 0:01:55.8]}
25... Nxf3+ {[%clk 0:01:04.8]} 26. Qxf3 {[%clk 0:01:55.9]} 26... Rad8 {[%clk
0:01:02.9]} 27. e5 {[%clk 0:01:54.1]} 27... Be6 {[%clk 0:00:59.8]} 28. Re2
{[%clk 0:01:49.6]} 28... Bf5 {[%clk 0:00:47.4]} 29. Rfe1 {[%clk 0:01:44.8]}
29... Rd3 {[%clk 0:00:41.9]} 30. Qf2 {[%clk 0:01:43.7]} 30... Red8 {[%clk
0:00:39.9]} 31. Bc1 {[%clk 0:01:42.6]} 31... Bf8 {[%clk 0:00:29.4]} 32. Be4
{[%clk 0:01:31]} 32... Bxe4 {[%clk 0:00:28.5]} 33. Rxe4 {[%clk 0:01:31.9]} 33...
Rd1 {[%clk 0:00:28.4]} 34. Bf4 {[%clk 0:01:27.3]} 34... Rxe1 {[%clk 0:00:27.3]}
35. Qxe1 {[%clk 0:00:38.8]} 35... Qd7 {[%clk 0:00:23.6]} 36. Qxa5 {[%clk
0:00:38.8]} 36... Re8 {[%clk 0:00:19.6]} 37. Qd2 {[%clk 0:00:37.5]} 37... Qf5
{[%clk 0:00:17.5]} 38. Re2 {[%clk 0:00:34.7]} 38... Qe6 {[%clk 0:00:06.1]} 39.
a4 {[%clk 0:00:32]} 39... Qf5 {[%clk 0:00:05.6]} 40. Qc2 {[%clk 0:00:32.1]}
40... Qe6 {[%clk 0:00:04.7]} 41. Qd3 {[%clk 0:00:32.2]} 41... Ra8 {[%clk
0:00:04]} 42. Rd2 {[%clk 0:00:31.5]} 42... Qe8 {[%clk 0:00:02.1]} 43. Qd7 {[%clk
0:00:31.5]} 43... b5 {[%clk 0:00:01.4]} 44. Qxe8 {[%clk 0:00:30.8]} 44... Rxe8
{[%clk 0:00:01]} 45. axb5 {[%clk 0:00:31.7]} 45... cxb5 {[%clk 0:00:01.3]} 46.
cxb5 {[%clk 0:00:32.6]} 46... Rb8 {[%clk 0:00:01.9]} 47. e6 {[%clk 0:00:33.2]}
47... Rxb5 {[%clk 0:00:02.5]} 48. e7 {[%clk 0:00:33.7]} 48... Bxe7 {[%clk
0:00:03.4]} 49. fxe7 {[%clk 0:00:34.1]} 49... Rb8 {[%clk 0:00:04.3]} 50. Bxb8
{[%clk 0:00:33.6]} 1-0

[Event "*** SCC Grand Prix: Titled Tuesday Blitz"]
[Site "Chess.com"]
[Date "2020.06.23"]
[Round "8"]
[White "dpruess"]
[Black "EvgenyRomanov"]
[Result "1-0"]
[WhiteElo "2494"]
[BlackElo "2622"]
[TimeControl "180+1"]
[EndTime "11:35:31 PDT"]
[Termination "dpruess won by resignation"]

1. e4 {[%clk 0:03:00.9]} 1... e5 {[%clk 0:02:57]} 2. f4 {[%clk 0:03:00.6]} 2...
exf4 {[%clk 0:02:54.8]} 3. Nf3 {[%clk 0:03:00.2]} 3... Nf6 {[%clk 0:02:53.5]} 4.
e5 {[%clk 0:02:55.5]} 4... Ne4 {[%clk 0:02:53.3]} 5. d3 {[%clk 0:02:32.1]} 5...
Ng5 {[%clk 0:02:52.7]} 6. Bxf4 {[%clk 0:02:32.1]} 6... Ne6 {[%clk 0:02:52.6]} 7.
Bg3 {[%clk 0:02:15.5]} 7... d5 {[%clk 0:02:52.9]} 8. d4 {[%clk 0:02:13.5]} 8...
c5 {[%clk 0:02:52.5]} 9. Nc3 {[%clk 0:01:55.7]} 9... cxd4 {[%clk 0:02:43.7]} 10.
Nxd4 {[%clk 0:01:54.1]} 10... Nc6 {[%clk 0:02:43.7]} 11. Ndb5 {[%clk 0:01:44.6]}
11... a6 {[%clk 0:02:09.3]} 12. Nd6+ {[%clk 0:01:44]} 12... Bxd6 {[%clk
0:02:09.4]} 13. exd6 {[%clk 0:01:44.9]} 13... d4 {[%clk 0:02:09.2]} 14. Ne4
{[%clk 0:01:42.1]} 14... O-O {[%clk 0:01:53.3]} 15. Bc4 {[%clk 0:01:34.8]} 15...
b5 {[%clk 0:01:49.3]} 16. Bd5 {[%clk 0:01:23]} 16... Bb7 {[%clk 0:01:41.1]} 17.
O-O {[%clk 0:01:22.9]} 17... Qb6 {[%clk 0:01:36]} 18. Qg4 {[%clk 0:00:53.3]}
18... Ncd8 {[%clk 0:01:22]} 19. Nf6+ {[%clk 0:00:41.2]} 19... Kh8 {[%clk
0:01:21.5]} 20. Nd7 {[%clk 0:00:41.2]} 20... Qa7 {[%clk 0:01:13.9]} 21. Bxb7
{[%clk 0:00:40.2]} 21... Qxb7 {[%clk 0:01:11.5]} 22. Nxf8 {[%clk 0:00:39.6]}
22... Nxf8 {[%clk 0:01:09.3]} 23. Qxd4 {[%clk 0:00:32.6]} 23... Nfe6 {[%clk
0:01:08.9]} 24. Qe5 {[%clk 0:00:29.8]} 24... Nc6 {[%clk 0:01:08.2]} 25. Qd5
{[%clk 0:00:27.4]} 25... Rd8 {[%clk 0:01:06.5]} 26. Rad1 {[%clk 0:00:27.2]}
26... Rd7 {[%clk 0:01:04.8]} 27. c3 {[%clk 0:00:24.8]} 27... Kg8 {[%clk
0:01:04.2]} 28. Kh1 {[%clk 0:00:25.1]} 28... h6 {[%clk 0:01:03]} 29. h3 {[%clk
0:00:25.5]} 29... Qb6 {[%clk 0:00:58.3]} 30. Rde1 {[%clk 0:00:23.8]} 30... Ncd8
{[%clk 0:00:57.6]} 31. Rf3 {[%clk 0:00:22]} 31... a5 {[%clk 0:00:57.2]} 32. a3
{[%clk 0:00:21.6]} 32... b4 {[%clk 0:00:57.4]} 33. axb4 {[%clk 0:00:20.8]} 33...
axb4 {[%clk 0:00:58.3]} 34. c4 {[%clk 0:00:21.1]} 34... b3 {[%clk 0:00:44]} 35.
Ref1 {[%clk 0:00:19.2]} 35... Nd4 {[%clk 0:00:40.9]} 36. Bf2 {[%clk 0:00:16]}
36... Rxd6 {[%clk 0:00:36.3]} 37. Bxd4 {[%clk 0:00:15.2]} 37... Qxd4 {[%clk
0:00:36.1]} 38. Qxd4 {[%clk 0:00:13.4]} 38... Rxd4 {[%clk 0:00:37]} 39. Rc3
{[%clk 0:00:10.1]} 39... Nc6 {[%clk 0:00:36.4]} 40. c5 {[%clk 0:00:10.3]} 40...
Rb4 {[%clk 0:00:34.7]} 41. Rfc1 {[%clk 0:00:10.1]} 41... Rb5 {[%clk 0:00:34.6]}
42. Rd1 {[%clk 0:00:10.3]} 42... Kf8 {[%clk 0:00:34.3]} 43. Rd6 {[%clk
0:00:10.3]} 43... Ne5 {[%clk 0:00:28.1]} 44. c6 {[%clk 0:00:10.5]} 44... Ke7
{[%clk 0:00:27.9]} 45. c7 {[%clk 0:00:10.5]} 45... Kxd6 {[%clk 0:00:19.7]} 46.
c8=Q {[%clk 0:00:10.6]} 46... Nd7 {[%clk 0:00:20.6]} 47. Qc6+ {[%clk 0:00:10.1]}
47... Ke7 {[%clk 0:00:20.4]} 48. Qxb5 {[%clk 0:00:11]} 1-0

[Event "*** SCC Grand Prix: Titled Tuesday Blitz"]
[Site "Chess.com"]
[Date "2020.06.23"]
[Round "8"]
[White "CalinGheorghiu"]
[Black "Kavyev_Ruslan"]
[Result "1-0"]
[WhiteElo "2403"]
[BlackElo "2542"]
[TimeControl "180+1"]
[EndTime "11:35:31 PDT"]
[Termination "CalinGheorghiu won by checkmate"]

1. d4 {[%clk 0:02:59.9]} 1... Nf6 {[%clk 0:02:59.8]} 2. c4 {[%clk 0:02:58.4]}
2... g6 {[%clk 0:02:58.6]} 3. f3 {[%clk 0:02:58]} 3... d5 {[%clk 0:02:57.5]} 4.
cxd5 {[%clk 0:02:58.9]} 4... Nxd5 {[%clk 0:02:58.4]} 5. e4 {[%clk 0:02:59.4]}
5... Nb6 {[%clk 0:02:57.8]} 6. Nc3 {[%clk 0:03:00]} 6... Bg7 {[%clk 0:02:58.2]}
7. Be3 {[%clk 0:03:00.4]} 7... O-O {[%clk 0:02:58.9]} 8. Qd2 {[%clk 0:03:00.8]}
8... Nc6 {[%clk 0:02:59.5]} 9. O-O-O {[%clk 0:03:01]} 9... f5 {[%clk 0:03:00.2]}
10. e5 {[%clk 0:03:00.3]} 10... Nb4 {[%clk 0:02:59.9]} 11. h4 {[%clk 0:02:56.5]}
11... Be6 {[%clk 0:02:58.3]} 12. Kb1 {[%clk 0:02:50.7]} 12... Qd7 {[%clk
0:02:51.9]} 13. Nh3 {[%clk 0:02:47.4]} 13... N6d5 {[%clk 0:02:43.1]} 14. a3
{[%clk 0:02:38.3]} 14... Nxc3+ {[%clk 0:02:38.6]} 15. Qxc3 {[%clk 0:02:37.3]}
15... Nd5 {[%clk 0:02:38]} 16. Qd2 {[%clk 0:02:35.5]} 16... Nxe3 {[%clk
0:02:27.9]} 17. Qxe3 {[%clk 0:02:35.8]} 17... Qd5 {[%clk 0:02:27.2]} 18. Nf4
{[%clk 0:02:20.7]} 18... Qa2+ {[%clk 0:02:27.2]} 19. Kc1 {[%clk 0:02:20.3]}
19... Bb3 {[%clk 0:02:25]} 20. Bd3 {[%clk 0:01:52.2]} 20... Bxd1 {[%clk
0:02:04.9]} 21. Rxd1 {[%clk 0:01:51.5]} 21... c5 {[%clk 0:01:52.8]} 22. d5
{[%clk 0:01:33]} 22... Rfd8 {[%clk 0:01:48.1]} 23. h5 {[%clk 0:01:19.6]} 23...
Bh6 {[%clk 0:01:47.1]} 24. hxg6 {[%clk 0:01:18.1]} 24... hxg6 {[%clk 0:01:48]}
25. d6 {[%clk 0:01:08.5]} 25... exd6 {[%clk 0:01:37]} 26. Rh1 {[%clk 0:01:08.6]}
26... Bg7 {[%clk 0:00:59.9]} 27. Nxg6 {[%clk 0:00:53.1]} 27... dxe5 {[%clk
0:00:53.3]} 28. Ne7+ {[%clk 0:00:39.7]} 28... Kf7 {[%clk 0:00:53.2]} 29. Nxf5
{[%clk 0:00:40.1]} 29... Rh8 {[%clk 0:00:28.3]} 30. Re1 {[%clk 0:00:12.6]} 30...
Bf6 {[%clk 0:00:27.6]} 31. Qe4 {[%clk 0:00:11.1]} 31... Kf8 {[%clk 0:00:19.1]}
32. Bc4 {[%clk 0:00:09.2]} 32... Qa1+ {[%clk 0:00:18.5]} 33. Kc2 {[%clk
0:00:09.1]} 33... Qxe1 {[%clk 0:00:15.5]} 34. Qxe1 {[%clk 0:00:09.5]} 34... Rd8
{[%clk 0:00:15.7]} 35. Qa5 {[%clk 0:00:08.7]} 35... Rc8 {[%clk 0:00:13.7]} 36.
Qxa7 {[%clk 0:00:08]} 36... Rh7 {[%clk 0:00:14.2]} 37. Qb6 {[%clk 0:00:07.4]}
37... Be7 {[%clk 0:00:12.4]} 38. Qg6 {[%clk 0:00:06.2]} 38... Rh2 {[%clk
0:00:09.3]} 39. Qg8# {[%clk 0:00:05.7]} 1-0

[Event "*** SCC Grand Prix: Titled Tuesday Blitz"]
[Site "Chess.com"]
[Date "2020.06.23"]
[Round "8"]
[White "Shankovskyi"]
[Black "WelshTiger"]
[Result "1-0"]
[WhiteElo "2456"]
[BlackElo "2356"]
[TimeControl "180+1"]
[EndTime "11:35:31 PDT"]
[Termination "Shankovskyi won by resignation"]

1. e4 {[%clk 0:03:00.9]} 1... c5 {[%clk 0:02:59.3]} 2. Nf3 {[%clk 0:02:59.3]}
2... Nc6 {[%clk 0:02:59.1]} 3. Bb5 {[%clk 0:02:58.1]} 3... g6 {[%clk 0:02:59.4]}
4. Bxc6 {[%clk 0:02:58.1]} 4... bxc6 {[%clk 0:02:59]} 5. O-O {[%clk 0:02:57.5]}
5... Bg7 {[%clk 0:02:59.5]} 6. Re1 {[%clk 0:02:58.4]} 6... e5 {[%clk 0:02:58.4]}
7. c3 {[%clk 0:02:58.4]} 7... Ne7 {[%clk 0:02:55.1]} 8. d4 {[%clk 0:02:58.4]}
8... cxd4 {[%clk 0:02:45.9]} 9. cxd4 {[%clk 0:02:59.3]} 9... exd4 {[%clk
0:02:43.4]} 10. Nxd4 {[%clk 0:02:59.4]} 10... O-O {[%clk 0:02:32.4]} 11. Nc3
{[%clk 0:02:59.4]} 11... Rb8 {[%clk 0:02:25.6]} 12. b3 {[%clk 0:02:49.7]} 12...
Qb6 {[%clk 0:02:21.1]} 13. Nde2 {[%clk 0:02:40.6]} 13... d5 {[%clk 0:02:20.5]}
14. exd5 {[%clk 0:02:28.7]} 14... Nxd5 {[%clk 0:02:17.6]} 15. Nxd5 {[%clk
0:02:27.8]} 15... cxd5 {[%clk 0:02:17.9]} 16. Be3 {[%clk 0:02:22.5]} 16... Qa5
{[%clk 0:02:09.6]} 17. Bd4 {[%clk 0:02:22.6]} 17... Bh6 {[%clk 0:01:39.9]} 18.
Nc3 {[%clk 0:01:46.3]} 18... Be6 {[%clk 0:01:33]} 19. Qf3 {[%clk 0:01:38.3]}
19... Bg7 {[%clk 0:01:33]} 20. Rad1 {[%clk 0:01:37.5]} 20... Rbc8 {[%clk
0:01:28.6]} 21. Bxg7 {[%clk 0:01:29.6]} 21... Kxg7 {[%clk 0:01:28.2]} 22. Nxd5
{[%clk 0:01:30]} 22... Bxd5 {[%clk 0:01:28]} 23. Qxd5 {[%clk 0:01:28]} 23...
Qxd5 {[%clk 0:01:24.8]} 24. Rxd5 {[%clk 0:01:27.3]} 24... Rc7 {[%clk 0:01:22.4]}
25. h4 {[%clk 0:01:23.9]} 25... h5 {[%clk 0:01:21.8]} 26. Re3 {[%clk 0:01:15.9]}
26... Rb8 {[%clk 0:01:19.6]} 27. g3 {[%clk 0:01:10.4]} 27... Rb6 {[%clk
0:01:17.7]} 28. Kg2 {[%clk 0:01:09.2]} 28... Rbc6 {[%clk 0:01:17.9]} 29. b4
{[%clk 0:01:03.2]} 29... Rc2 {[%clk 0:01:16.4]} 30. a3 {[%clk 0:01:02]} 30...
Ra2 {[%clk 0:01:16.4]} 31. Ra5 {[%clk 0:01:01.4]} 31... f5 {[%clk 0:00:56.7]}
32. Ra6 {[%clk 0:00:58.5]} 32... Kh6 {[%clk 0:00:50.2]} 33. Ree6 {[%clk
0:00:37.5]} 33... Rcc2 {[%clk 0:00:49.9]} 34. Rxg6+ {[%clk 0:00:37.5]} 34... Kh7
{[%clk 0:00:50.4]} 35. Kf3 {[%clk 0:00:38.4]} 35... Rxf2+ {[%clk 0:00:49.6]} 36.
Ke3 {[%clk 0:00:38.8]} 36... Rae2+ {[%clk 0:00:45.7]} 37. Kd3 {[%clk 0:00:38.3]}
37... Re4 {[%clk 0:00:41.5]} 38. Rgd6 {[%clk 0:00:16.9]} 38... Rf3+ {[%clk
0:00:40.2]} 39. Kc2 {[%clk 0:00:17.2]} 39... Rxg3 {[%clk 0:00:38.6]} 40. Rxa7+
{[%clk 0:00:16.2]} 40... Rg7 {[%clk 0:00:26.5]} 41. Rxg7+ {[%clk 0:00:16.3]}
41... Kxg7 {[%clk 0:00:26.9]} 42. b5 {[%clk 0:00:17.2]} 42... Rf4 {[%clk
0:00:23.7]} 43. b6 {[%clk 0:00:16]} 1-0

[Event "*** SCC Grand Prix: Titled Tuesday Blitz"]
[Site "Chess.com"]
[Date "2020.06.23"]
[Round "8"]
[White "shnitez"]
[Black "kingofkolkata"]
[Result "0-1"]
[WhiteElo "2505"]
[BlackElo "2237"]
[TimeControl "180+1"]
[EndTime "11:35:32 PDT"]
[Termination "kingofkolkata won by checkmate"]

1. d4 {[%clk 0:03:00.9]} 1... d5 {[%clk 0:02:59.6]} 2. c4 {[%clk 0:03:00.2]}
2... e6 {[%clk 0:02:59.9]} 3. Nc3 {[%clk 0:02:57.2]} 3... Bb4 {[%clk 0:02:59.4]}
4. Qa4+ {[%clk 0:02:53.9]} 4... Nc6 {[%clk 0:02:59.1]} 5. Nf3 {[%clk 0:02:53.4]}
5... Nf6 {[%clk 0:02:57.4]} 6. Bg5 {[%clk 0:02:46.6]} 6... O-O {[%clk
0:02:53.9]} 7. e3 {[%clk 0:02:45.4]} 7... Bd7 {[%clk 0:02:47.7]} 8. Qc2 {[%clk
0:02:44.7]} 8... Bxc3+ {[%clk 0:02:46]} 9. bxc3 {[%clk 0:02:33]} 9... a6 {[%clk
0:02:38.1]} 10. a4 {[%clk 0:02:19.9]} 10... h6 {[%clk 0:02:33]} 11. Bxf6 {[%clk
0:01:59.2]} 11... Qxf6 {[%clk 0:02:33.9]} 12. Rb1 {[%clk 0:01:50]} 12... Rab8
{[%clk 0:02:31.5]} 13. Bd3 {[%clk 0:01:33.1]} 13... dxc4 {[%clk 0:02:19.3]} 14.
Bxc4 {[%clk 0:01:34]} 14... e5 {[%clk 0:02:18.6]} 15. Bd5 {[%clk 0:01:26.9]}
15... exd4 {[%clk 0:02:01.4]} 16. cxd4 {[%clk 0:01:23.3]} 16... Bf5 {[%clk
0:01:58.8]} 17. Be4 {[%clk 0:01:09]} 17... Bxe4 {[%clk 0:01:55.8]} 18. Qxe4
{[%clk 0:01:09.9]} 18... Rfe8 {[%clk 0:01:56.4]} 19. Qd3 {[%clk 0:01:05.7]}
19... a5 {[%clk 0:01:35.3]} 20. O-O {[%clk 0:01:00.6]} 20... Nb4 {[%clk
0:01:35.2]} 21. Qb5 {[%clk 0:00:52.9]} 21... b6 {[%clk 0:01:32.8]} 22. Rfe1
{[%clk 0:00:47]} 22... c6 {[%clk 0:01:29.8]} 23. Qc4 {[%clk 0:00:42.5]} 23...
Qe6 {[%clk 0:01:29.1]} 24. Qc3 {[%clk 0:00:33.3]} 24... Nd5 {[%clk 0:01:26.1]}
25. Qc2 {[%clk 0:00:31.2]} 25... Nb4 {[%clk 0:01:25.1]} 26. Qc3 {[%clk
0:00:31.4]} 26... Qa2 {[%clk 0:01:22.5]} 27. Ra1 {[%clk 0:00:29.8]} 27... Qc2
{[%clk 0:01:19.5]} 28. Qa3 {[%clk 0:00:26.7]} 28... Qh7 {[%clk 0:01:04.4]} 29.
Ne5 {[%clk 0:00:18.7]} 29... Nc2 {[%clk 0:01:02.3]} 30. Qb3 {[%clk 0:00:18.2]}
30... Nxe1 {[%clk 0:00:57.4]} 31. Qxf7+ {[%clk 0:00:17.7]} 31... Kh8 {[%clk
0:00:54.9]} 32. Ng6+ {[%clk 0:00:18.6]} 32... Qxg6 {[%clk 0:00:54.6]} 33. Qxg6
{[%clk 0:00:19.5]} 33... b5 {[%clk 0:00:47.7]} 34. Rxe1 {[%clk 0:00:18.8]} 34...
b4 {[%clk 0:00:47.2]} 35. Qxc6 {[%clk 0:00:18.6]} 35... Rec8 {[%clk 0:00:47.1]}
36. Qd5 {[%clk 0:00:15.6]} 36... b3 {[%clk 0:00:47.3]} 37. Qxa5 {[%clk
0:00:15.2]} 37... b2 {[%clk 0:00:47.4]} 38. g3 {[%clk 0:00:09.8]} 38... Rc1
{[%clk 0:00:42.3]} 39. Kg2 {[%clk 0:00:05.6]} 39... b1=Q {[%clk 0:00:39.1]} 40.
Rxc1 {[%clk 0:00:05.5]} 40... Qxc1 {[%clk 0:00:40]} 41. d5 {[%clk 0:00:06.1]}
41... Qd1 {[%clk 0:00:32.2]} 42. Qc5 {[%clk 0:00:04.6]} 42... Qd3 {[%clk
0:00:23.7]} 43. Qd6 {[%clk 0:00:04.2]} 43... Qe4+ {[%clk 0:00:21.4]} 44. Kg1
{[%clk 0:00:02.5]} 44... Rb1# {[%clk 0:00:21.3]} 0-1